Cogmind - Beta 9.4 @@@ ROGUE MODE // 2020.02.23 @ 00:52:54 // Winter2019/RPGLIKE Player: NeraMorte Result: Destroyed by as-15902 with Assembled Heavy Rifle Performance ------------- Evolutions (0) 0 Regions Visited (4) 800 Robots Destroyed (9) 45 Value Destroyed (100) 100 Prototype IDs (0) 0 Alien Tech Used (0) 0 Bonus (-15) -15 TOTAL SCORE: 930 Bonus ------- Friendly Fire -15 Cogmind --------- Core Integrity 0/700 Matter 210/300 Energy 290/290 System Corruption 0% Temperature Cool (280) Movement Treading (160) Location -9/Mines Parts ------- > --- POWER (1) -------- Improved Deuterium Engine > --- PROPULSION (2) --- Medium Treads Medium Treads > --- UTILITY (2) ------ Signal Interpreter > --- WEAPON (2) ------- Particle Gun Assault Rifle > --- INVENTORY (3) ---- Light Ion Engine Hardened Heavy Armor Plating Peak State ------------ > --- POWER ------------ Improved Deuterium Engine > --- PROPULSION ------- Medium Treads Medium Treads > --- UTILITY ---------- Signal Interpreter > --- WEAPON ----------- Particle Gun Assault Rifle > --- INVENTORY -------- Light Ion Engine Hardened Heavy Armor Plating [Rating: 16] Favorites ----------- Power Light Ion Engine Engine Light Ion Engine Propulsion Light Treads Treads Light Treads Flight Unit Flight Unit Utility Light Armor Plating Processor Signal Interpreter Protection Light Armor Plating Weapon Assault Rifle Energy Gun Particle Gun Ballistic Gun Assault Rifle Build | -11 -10 -10 -10 -9 ------- Run | Scr Mat Min Exi Min Slots Evolved 3 | . . 3 . . Power . | . . . . . Propulsion 1 | . . 1 . . Utility 1 | . . 1 . . Weapon 1 | . . 1 . . Parts Attached 11 | 3 3 . . 5 Power 2 | 1 . . . 1 Engine 2 | 1 . . . 1 Core . | . . . . . Reactor . | . . . . . Propulsion 5 | 1 2 . . 2 Treads 4 | 1 1 . . 2 Leg . | . . . . . Wheel . | . . . . . Hover . | . . . . . Flight 1 | . 1 . . . Utility 2 | . 1 . . 1 Device . | . . . . . Storage . | . . . . . Processor 1 | . . . . 1 Hackware . | . . . . . Protection 1 | . 1 . . . Artifact . | . . . . . Weapon 2 | 1 . . . 1 Energy Gun 1 | . . . . 1 Energy Cannon . | . . . . . Ballistic Gun 1 | 1 . . . . Ballistic Cannon . | . . . . . Launcher . | . . . . . Special Weapon . | . . . . . Impact Weapon . | . . . . . Slashing Weapon . | . . . . . Piercing Weapon . | . . . . . Special Melee Weapon . | . . . . . Unidentified Prototypes . | . . . . . Parts Lost . | . . . . . Power . | . . . . . Propulsion . | . . . . . Utility . | . . . . . Weapon . | . . . . . Highest Loss Streak . | . . . . . Average Slot Usage (%) 73 | . 99 99 57 81 Engine 18 | . 25 24 14 14 Treads 18 | . 24 24 14 23 Protection 17 | . 24 24 14 3 Ballistic Gun 18 | . 25 24 14 14 Naked Turns . | . . . . . Heaviest Build 15 | 5 8 8 8 15 Greatest Support 56 | 20 20 20 20 56 Greatest Overweight (x) 2 | 1 2 . . . Average Overweight (x) . | . . . . . Largest Inventory Capacity 3 | . . . 3 3 Average Capacity 1 | . . . 2 3 Most Carried 3 | . . . 1 3 Average Carried . | . . . . 1 Final Capacity 3 | . . . 3 3 Final Carried 3 | . . . . 3 Class Distribution -------------------- 100% | Mutant Dominant Class ---------------- Mutant | -10/Materials Mutant | -10/Mines Mutant | -10/Exiles Mutant | -9/Mines Resources | -11 -10 -10 -10 -9 ----------- Run | Scr Mat Min Exi Min Matter Collected 368 | 133 169 31 . 35 Remotely . | . . . . . Salvage Created 157 | . 92 49 . 16 Parts 20 | . 9 11 . . Haulers Intercepted . | . . . . . Recyclers Shooed 2 | . 1 1 . . Parts Field Recycled . | . . . . . Retrieved Matter . | . . . . . Parts Self-Destructed . | . . . . . Prevented . | . . . . . Kills | -11 -10 -10 -10 -9 ------- Run | Scr Mat Min Exi Min Combat Hostiles Destroyed 8 | . 3 4 . 1 Guns 8 | . 3 4 . 1 Classes Destroyed 4 | . 2 1 . 1 Recycler 1 | . 1 . . . Swarmer 6 | . 3 3 . . Grunt 1 | . . 1 . . Assembled 1 | . . . . 1 Best Kill Streak 3 | . 3 2 . 1 Combat Bots Only 3 | . 3 2 . 1 Max Kills in Single Turn 1 | . 1 1 . 1 Gunslinging . | . . . . . Exploded . | . . . . . Melee . | . . . . . Uniques/NPCs Destroyed . | . . . . . Combat | -11 -10 -10 -10 -9 -------- Run | Scr Mat Min Exi Min Damage Taken 1100 | . 147 204 . 749 Core 840 | . 103 129 . 608 Absorbed by Shields . | . . . . . Redirected to Core 670 | . 85 95 . 490 Core Remaining (%) 100 | 100 . . . . Volleys Fired 51 | . 20 23 1 7 Largest 2 | . 1 1 1 2 Hottest 85 | . 20 20 20 85 Shots Fired 58 | . 20 23 1 14 Gun 58 | . 20 23 1 14 Cannon . | . . . . . Launcher . | . . . . . Special . | . . . . . Kinetic 51 | . 20 23 1 7 Thermal 7 | . . . . 7 Explosive . | . . . . . Electromagnetic . | . . . . . Robot Hit Streak 5 | . 3 5 . 4 Robot Miss Streak 3 | . 2 3 . 2 Penetration Max . | . . . . . Secondary Targets 1 | . . . . 1 Max Gunslinging Chain 1 | . . . . 1 Shots Hit Robots 32 | . 11 13 . 8 Core Hits 18 | . 5 6 . 7 Critical Hits 1 | . . 1 . . Critical Kills . | . . . . . Critical Parts Destroyed 1 | . . 1 . . Melee Attacks . | . . . . . Impact . | . . . . . Slashing . | . . . . . Piercing . | . . . . . Sneak Attacks . | . . . . . Combat Hostiles . | . . . . . Follow-up Attacks . | . . . . . Damage Inflicted 493 | . 148 174 . 171 Guns 490 | . 148 171 . 171 Cannons . | . . . . . Explosions . | . . . . . Melee . | . . . . . Ramming 3 | . . 3 . . Kinetic 392 | . 148 171 . 73 Thermal 98 | . . . . 98 Explosive . | . . . . . Electromagnetic . | . . . . . Impact . | . . . . . Slashing . | . . . . . Piercing . | . . . . . Highest Corruption . | . . . . . Average Corruption . | . . . . . Corruption Purged . | . . . . . Overload Shots . | . . . . . Overflow Damage . | . . . . . Projectiles . | . . . . . Explosions . | . . . . . Melee . | . . . . . Knockbacks . | . . . . . Impact . | . . . . . Kinetic . | . . . . . Secondary . | . . . . . Self-Inflicted Damage . | . . . . . Shots . | . . . . . Rammed 1 | . . 1 . . Targets Rammed 1 | . . 1 . . Kicked . | . . . . . Crushed . | . . . . . Highest Temperature 280 | . 5 . . 280 Average Temperature 150 | . 5 . . 158 Received Heat Transfer 140 | . 30 30 . 80 Siege Activations . | . . . . . Robots Corrupted . | . . . . . Combat Hostiles . | . . . . . Parts Fried . | . . . . . Impact Corruptions . | . . . . . Robots Melted . | . . . . . Combat Hostiles . | . . . . . Parts Melted . | . . . . . Heat Transferred 222 | . . . . 222 Parts Sabotaged . | . . . . . Parts Stolen . | . . . . . Parts Stripped . | . . . . . Power Chain Reactions . | . . . . . Missiles Intercepted . | . . . . . Alert | -11 -10 -10 -10 -9 ------- Run | Scr Mat Min Exi Min Peak Influence 75 | . 75 70 . 15 Average Influence 27 | . 35 27 . 3 Maximum Alert Level . | . . . . . Low Security (%) 100 | 100 100 100 . 100 Level 1 . | . . . . . Level 2 . | . . . . . Level 3 . | . . . . . Level 4 . | . . . . . Level 5 . | . . . . . High Security . | . . . . . Max Security . | . . . . . Squads Dispatched 3 | . 2 1 . . Investigation 2 | . 1 1 . . Extermination . | . . . . . Reinforcement 1 | . 1 . . . Assault . | . . . . . Garrison . | . . . . . Intercept . | . . . . . Construction Impeded . | . . . . . Haulers Reinforced . | . . . . . Stealth | -11 -10 -10 -10 -9 --------- Run | Scr Mat Min Exi Min Distress Signals . | . . . . . Communications Jammed . | . . . . . Distress Signals . | . . . . . Times Spotted 28 | . 12 4 . 12 Peak Tracking Total 12 | . 5 3 . 12 Tactical Retreats 1 | . . . . 1 Traps | -11 -10 -10 -10 -9 ------- Run | Scr Mat Min Exi Min Traps Triggered 3 | . 1 . . 2 Indirectly . | . . . . . Trap Hack Attempts . | . . . . . Triggered . | . . . . . Disarmed . | . . . . . Reprogrammed . | . . . . . Reused . | . . . . . Traps Extracted . | . . . . . Installed . | . . . . . Triggered . | . . . . . Machines | -11 -10 -10 -10 -9 ---------- Run | Scr Mat Min Exi Min Machines Disabled . | . . . . . Max in Single Turn . | . . . . . Machines Sabotaged . | . . . . . Garrisons Compromised . | . . . . . Overloaded Fab Kills . | . . . . . Fab Network Shutdowns . | . . . . . Hacking | -11 -10 -10 -10 -9 --------- Run | Scr Mat Min Exi Min Machines Accessed 8 | . 1 2 4 1 Terminals 2 | . . 2 . . Fabricators . | . . . . . Repair Stations . | . . . . . Recycling Units 1 | . 1 . . . Scanalyzers . | . . . . . Garrison Access . | . . . . . Total Hacks 55 | . 2 4 48 1 Successful 55 | . 2 4 48 1 Failed . | . . . . . Catastrophic . | . . . . . Database Lockouts . | . . . . . Manual 1 | . . . 1 . Terminals 4 | . . 4 . . Fabricators . | . . . . . Repair Stations . | . . . . . Recycling Units 2 | . 2 . . . Scanalyzers . | . . . . . Garrison Access . | . . . . . Terminal Hacks 53 | . . 4 48 1 Record 51 | . . 3 48 . Open Door 1 | . . . . 1 Zone Layout 1 | . . 1 . . Fabricator Hacks . | . . . . . Repair Station Hacks . | . . . . . Recycling Unit Hacks 2 | . 2 . . . Report Inventory 1 | . 1 . . . Retrieve Components 1 | . 1 . . . Scanalyzer . | . . . . . Garrison Access Hacks . | . . . . . Unauthorized Hacks . | . . . . . Terminals . | . . . . . Fabricators . | . . . . . Repair Stations . | . . . . . Recycling Units . | . . . . . Scanalyzers . | . . . . . Garrison Access . | . . . . . Data Cores Recovered . | . . . . . Used . | . . . . . Hacking Detections 2 | . . 2 . . Full Trace Events 1 | . . 1 . . Feedback Events . | . . . . . Feedback Blocked . | . . . . . Robot Schematics Acquired . | . . . . . Robots Built . | . . . . . Matter . | . . . . . Time . | . . . . . Total Robot Build Rating . | . . . . . Part Schematics Acquired . | . . . . . Parts Built . | . . . . . Matter . | . . . . . Time . | . . . . . Total Part Build Rating . | . . . . . Parts Repaired . | . . . . . Time . | . . . . . Parts Recycled . | . . . . . Recycled Matter . | . . . . . Retrieved Matter . | . . . . . Retrieved Components 2 | . 2 . . . Parts Scanalyzed . | . . . . . Part Schematics Acquired . | . . . . . Parts Damaged . | . . . . . Bothacking | -11 -10 -10 -10 -9 ------------ Run | Scr Mat Min Exi Min Used RIF Installer . | . . . . . Robots Hacked . | . . . . . Non-combat . | . . . . . Combat . | . . . . . Robot Hacks Applied . | . . . . . Relay Couplers Released . | . . . . . Robots Rewired . | . . . . . Allies Hacked . | . . . . . Hacks Repelled . | . . . . . Allies | -11 -10 -10 -10 -9 -------- Run | Scr Mat Min Exi Min Total Allies . | . . . . . Largest Group . | . . . . . Highest-Rated Group . | . . . . . Highest-Rated Ally . | . . . . . Total Orders . | . . . . . Ally Attacks . | . . . . . Total Damage . | . . . . . Kills . | . . . . . Allies Corrupted . | . . . . . Allies Melted . | . . . . . Intel | -11 -10 -10 -10 -9 ------- Run | Scr Mat Min Exi Min Robot Analysis Total . | . . . . . Derelict Logs Recovered 2 | . . 1 . 1 Drone Launches . | . . . . . Drone Recoveries . | . . . . . Exploration | -11 -10 -10 -10 -9 ------------- Run | Scr Mat Min Exi Min Turns Passed 2881 | 58 545 488 1674 116 Spaces Moved 1712 | 38 308 270 1045 51 Core 7 | 6 1 . . . Treads 1702 | 32 304 270 1045 51 Legs . | . . . . . Wheels . | . . . . . Hover . | . . . . . Flight 3 | . 3 . . . Fastest Speed 50 | 50 120 160 160 160 Average Speed 159 | 143 159 160 160 160 Slowest Speed 160 | 160 160 160 160 160 Overloaded Moves . | . . . . . Propulsion Burnouts . | . . . . . Robots Hopped . | . . . . . Cave-ins Triggered . | . . . . . Exploration Rate (%) 40 | 4 36 57 93 11 Regions Visited 4 Branch Regions 3 Pre-discovered Areas 2 | . . . 1 1 Known Exits Taken . | . . . . . Unknown Exits Taken 4 | 1 1 1 1 . Scrap Searched 2 | . . 1 . 1 Spaces Dug . | . . . . . Terrain Destroyed . | . . . . . Melee . | . . . . . Projectile . | . . . . . AOE . | . . . . . Actions | -11 -10 -10 -10 -9 --------- Run | Scr Mat Min Exi Min Total 1802 | 40 341 303 1047 71 Wait 11 | . 3 6 . 2 Move 1708 | 37 307 269 1044 51 Hop . | . . . . . Pick Up 6 | . . . 1 5 Fast Attach 7 | 3 3 . . 1 Attach 3 | . . . . 3 Detach . | . . . . . Swap 1 | . . . . 1 Drop 4 | . 2 . 1 1 Fire 51 | . 20 23 1 7 Melee . | . . . . . Ram . | . . . . . Kick . | . . . . . Crush 1 | . . 1 . . Escape Stasis . | . . . . . Rewire . | . . . . . Trap . | . . . . . Miscellaneous 10 | . 6 4 . . Route ------- -11/Scrapyard -10/Materials -10/Mines -10/Exiles (discovered 2 exits: *Min x2) -9/Mines History --------- Turn | Location | Event 14 | -11/Scrapyard | Discovered new exit (range 15) 59 | -11/Scrapyard | Entered Materials 305 | -10/Materials | Build established: Mutant 561 | -10/Materials | Discovered new exit (range 9) 604 | -10/Materials | Entered Mines 662 | -10/Mines | Learned Materials non-interactive machine intel 1083 | -10/Mines | Upgraded with Propulsion slot (x1) 1083 | -10/Mines | Upgraded with Utility slot (x1) 1083 | -10/Mines | Upgraded with Weapon slot (x1) 1084 | -10/Mines | Deemed a non-threat by the Exiles lab entrance 1086 | -10/Mines | Discovered new exit (range 5) 1092 | -10/Mines | Entered Exiles 1094 | -10/Exiles | Reached level 2 1116 | -10/Exiles | Discovered new exit (range 16) 1171 | -10/Exiles | Met 8R-AWN 1193 | -10/Exiles | Met EX-HEX 1294 | -10/Exiles | Met EX-DEC 1325 | -10/Exiles | Visited The Gauntlet 1539 | -10/Exiles | Learned location of Zion (-6) 1584 | -10/Exiles | Met EX-BIN 2110 | -10/Exiles | Discovered new exit (range 10) 2766 | -10/Exiles | Entered Mines 2791 | -9/Mines | Met a Derelict who couldn't figure out how to use a Trap Extractor 2801 | -9/Mines | Met a Derelict bent on vengeance 2850 | -9/Mines | Assembled infested the area 2855 | -9/Mines | Assisted by a Guerilla fighting off Assembled 2874 | -9/Mines | Core integrity fell below 50% 2879 | -9/Mines | Core integrity fell below 20% 2882 | -9/Mines | Destroyed by as-15902 with Assembled Heavy Rifle Last Messages --------------- 02817_ Acquired Med. Treads. 02822_ Triggered Explosive Trap. 02822_ An explosion rips through the floor. 02822_ Machine disabled. 02850_ ALERT: Infestation in the mines, dispatching Demolisher response squad. 02855_ A derelict emerges from the shadows: "You need to get out of here! I've been tracking a group of Assembled to figure out where they're coming from, and they're closing on this area, come on!" 02857_ 2C-W6U(h): "I'll hold them off! Go on ahead or try to find another way!" 02864_ HV Slug penetrates as-29096. 02864_ as-29096 suffers critical hit. 02864_ HV Slug penetrates as-93548. 02864_ as-93548 suffers critical hit. 02864_ as-93548 destroyed. 02866_ 2C-W6U(h) destroyed. 02870_ Protomatter-8 decays. 02880_ as-96551 destroyed. 02880_ Switching to secondary target: as-29096. Map ----- +----------------------------------------------------+ | ?????????????????????????????????????????? | | ?????????????????????????????????????????? | | ?????????????????????????????????????????? | | ?????????????????????????????????????????? | | ?????????????????????????????????????????? | | ?????????????????????????????????????????? | | ?????????????????????????????????????????? | | ???????????????? ??????????????????????? | | ???????????????? ??????????????????????? | | ???????????????? ??????????????????????? | | ???????????????# ??????????????????????? | | ??????????????? ??????????????????????? | | ??????????????? ??????????????????????? | | ??????????????? ??????????????????????? | | ??????????????? #??????????????????????? | | ??????????????? #??????????????????????? | | ???????????????# a#??????????????????????? | | ???????????????# #??????????????????????? | | ???????????????;a ##?????????????????????? | | ???????????????# ??????????????????????? | | ???????????????#= #??????????????????????? | | ???????????????#a!#??????????????????????? | | ??????????????##a #??????????????????????? | | ?????????###### aa#??????????????????????? | | ????????## a%#??????????????????????? | | ????????# @#??????????????????????? | | ????????# t ##??????????????????????? | | ????????## #######???????????????????????? | | ?????????# #?????????????????????????????? | | ????????## #?????????????????????????????? | | ???????## ##????????????????????????????? | | ?####?## #????????????????????????????? | | ?#" ### #????????????????????????????? | | ##"=!! ##????????????????????????????? | | # " ! ##?????????????????????????????? | | ?# = ##?????????????????????????????? | | ?# = ! X ###???????????????????????????? | | ?#" # ###?????????????????????????? | | ?# ### ##????????????????????????? | | ?###??# #????????????????????????? | | ??????# ## ##????????????????????????? | | ??????## #?##?????????????????????????? | | ???????## [####?????????????????????????? | | ????????## = #?????????????????????????? | | ?????????# ## #?????????????????????????? | | ?????????# #??#?????????????????????????? | | ?????????# #????????????????????????????? | | ?????????# #????????????????????????????? | | ????????? ????????????????????????????? | | ???????? ????????????????????????????? | +----------------------------------------------------+ Best States ------------- Heat Dissipation 25 Energy Generation 16 Energy Capacity 290 Matter Stores 300 Matter Capacity 300 Sight Range 17 Robot Scan Range 2 Terrain Scan Density 10 Armor Coverage 150 Resistance: KI 5 Resistance: TH 5 Resistance: EX 5 Evasion (%) 40 Recoil Reduction 2 Item Schematics ----------------- None Robot Schematics ------------------ None Fabricated ------------ Nothing Alien Tech Used ----------------- None Achievements -------------- None Challenges ------------ None RPGLIKE | -11 -10 -10 -10 -9 --------- Run | Scr Mat Min Exi Min Levels Raised 1 | . . . 1 . XP Earned 5050 | 3000 350 1000 200 500 XP Spent 4160 | . . 1650 2510 . Upgrades 15 | . . 5 10 . Propulsion Slot 1 | . . 1 . . Utility Slot 1 | . . 1 . . Weapon Slot 1 | . . 1 . . Core Integrity 2 | . . . 2 . Inventory Capacity 3 | . . . 3 . Sight Range 1 | . . 1 . . Sensor Range 1 | . . 1 . . Melee Accuracy 2 | . . . 2 . KI Resistance % 1 | . . . 1 . TH Resistance % 1 | . . . 1 . EX Resistance % 1 | . . . 1 . Protomatter Created 76 | . 41 35 . . Integrity Restored 156 | . 93 63 . . Core 128 | . 65 63 . . Parts 28 | . 28 . . . Protomatter Decayed 30 | . 8 14 . 8 Game ------ Seed ShieldSupercompositeLoader Manual? 0 Play Time 00:25:37 Cumulative 45.5 hours Start 2020.02.22 @ 22:42:00 End 2020.02.23 @ 00:52:54 Sessions 1 Manual Loads 0 Difficulty Rogue Special Mode Winter2019/RPGLIKE Game No. 33 Rogue 33 Adventurer 0 Explorer 0 Win Type - Total 0 Types 0/0/0/0/0/0/0 Lore% 22 Gallery% 30 Achievement% 21 Wizard Run 0 Options --------- ASCII 0 Keyboard 0 Movement Numpad Keybinds 0 Fullscreen 1 Font 24/Smallcaps Map View 76x50 Tactical HUD 1 Map Filters NONE Filters NONE Steam 1 RUN: a02ef814-3450-486c-9154-a8e023285a9b